bitfinex/quotes_SOLUSD_20220130
["timestamp","ask_amount","ask_price","bid_price","bid_amount"]
[1643557385765,41.27759353,95.319,95.275,6.45]
[1643557385959,0.25,95.318,95.274,0.38651964]
[1643557386363,15.748,95.31,95.274,0.38651964]
[1643557386759,0.25,95.309,95.274,0.38651964]
[1643557388862,15.75,95.3,95.274,0.38651964]
[1643557389262,0.25,95.299,95.274,0.38651964]
[1643557389862,15.75,95.3,95.274,0.38651964]
[1643557390061,0.25,95.299,95.274,0.38651964]
[1643557390262,15.752,95.29,95.274,0.38651964]
[1643557390462,83.25352261,95.289,95.274,0.38651964]
[1643557390664,83.50352261,95.289,95.264,0.38924256]
[1643557390865,37.326589,95.288,95.264,0.38924256]
[1643557391066,104.9,95.287,95.264,0.38924256]
[1643557391265,37.326589,95.286,95.264,0.38924256]
[1643557391671,15.756,95.28,95.264,0.38924256]
[1643557391968,18.895324,95.279,95.264,0.38924256]
[1643557392768,104.9,95.278,95.264,0.38924256]
[1643557392970,15.756,95.28,95.264,0.38924256]
[1643557392971,104.9,95.276,95.264,0.38924256]
[1643557393374,15.759,95.27,95.23,1.43736121]
[1643557393569,15.759,95.27,95.222,1.43736121]
[1643557393771,15.759,95.27,95.221,1.43736121]
[1643557393971,15.759,95.27,95.213,1.43736121]
[1643557394171,104.9,95.269,95.211,1.43736121]
[1643557394576,104.9,95.269,95.212,1.43736121]
[1643557394774,104.9,95.269,95.213,0.25]
[1643557394974,104.9,95.269,95.191,0.2]
[1643557394975,15.758,95.26,95.206,1.43736121]
[1643557395378,39.39173474,95.258,95.206,1.43736121]
[1643557395575,54.874321,95.257,95.19,1.43736121]
[1643557395777,54.874321,95.257,95.186,1.43736121]
[1643557395778,55.124321,95.257,95.186,1.43736121]
[1643557395977,15.764,95.25,95.186,1.43736121]
[1643557396175,15.764,95.25,95.177,1.43736121]
[1643557396474,0.25,95.249,95.176,1.43736121]
[1643557396673,0.25,95.249,95.177,1.43736121]
[1643557396875,0.25,95.249,95.178,1.43736121]
[1643557397174,15.764,95.23,95.177,1.43736121]
[1643557397376,0.25,95.249,95.163,0.45]
[1643557397377,0.25,95.249,95.179,1.43736121]
[1643557397675,0.25,95.249,95.189,6.0]
[1643557397874,22.906,95.256,95.19,0.25]
[1643557398074,22.906,95.256,95.193,6.0]
[1643557398276,22.906,95.256,95.194,0.25]
[1643557398480,38.21006282,95.255,95.194,0.25]
[1643557398678,38.21006282,95.255,95.2,6.0]
[1643557398878,38.21006282,95.255,95.201,0.25]
[1643557399179,15.76,95.24,95.204,6.0]
[1643557399379,0.25,95.239,95.205,0.25]
[1643557399578,0.25,95.239,95.191,0.2]
[1643557399779,14.248053,95.238,95.191,0.45]
[1643557400278,14.248053,95.238,95.191,6.25]
[1643557400479,14.248053,95.238,95.191,0.25]
[1643557400679,0.25,95.237,95.191,0.25]
[1643557400879,0.25,95.239,95.191,0.25]
[1643557401082,1.45962049,95.322,95.2,15.758]
[1643557401280,0.25,95.267,95.201,25.4348]
[1643557401479,0.25,95.267,95.21,6.0]
[1643557401684,0.25,95.267,95.211,6.0]
[1643557401880,0.25,95.267,95.212,0.25]
[1643557402210,15.757,95.26,95.212,0.25]
[1643557402380,0.25,95.259,95.212,0.25]
[1643557402679,0.25,95.259,95.211,6.2]
[1643557402879,0.25,95.259,95.212,0.25]
[1643557403479,15.757,95.26,95.212,0.25]
[1643557403684,15.755,95.27,95.22,21.754]
[1643557403880,0.25,95.269,95.221,24.5862]
[1643557404081,0.25,95.269,95.222,0.2]
[1643557405081,0.25,95.279,95.231,6.0]
[1643557405282,0.25,95.287,95.232,0.25]
[1643557405482,14.49362,95.287,95.232,0.25]
[1643557405682,14.24362,95.286,95.232,0.25]
[1643557405882,15.754,95.28,95.222,0.2]
[1643557406086,0.25,95.279,95.21,6.0]
[1643557406290,52.52,95.29,95.211,0.25]
[1643557406488,52.52,95.29,95.211,6.25]
[1643557406695,45.69078213,95.288,95.211,6.45]
[1643557406894,54.37855549,95.27,95.211,6.45]
[1643557407193,104.9,95.288,95.22,6.0]
[1643557407393,104.9,95.288,95.221,6.25]
[1643557407592,104.9,95.286,95.221,0.45]
[1643557407894,0.25,95.285,95.22,6.0]
[1643557408193,32.82386172,95.284,95.222,6.0]
[1643557408393,0.25,95.283,95.223,0.25]
[1643557408592,15.754,95.28,95.223,0.25]
[1643557408796,0.25,95.279,95.223,23.9866]
[1643557408993,0.25,95.279,95.224,0.2]
[1643557409812,15.755,95.27,95.224,0.2]
[1643557410013,40.93812719,95.269,95.224,0.45]
[1643557410212,41.18812719,95.269,95.224,0.45]
[1643557410413,40.93812719,95.269,95.224,0.45]
[1643557410816,0.25,95.268,95.224,0.45]
[1643557411016,40.93812719,95.269,95.224,0.45]
[1643557411916,0.25,95.268,95.224,0.45]
[1643557412116,0.25,95.268,95.224,0.2]
[1643557412317,0.25,95.268,95.211,0.45]
[1643557412518,0.25,95.268,95.211,6.25]
[1643557412817,0.25,95.268,95.211,6.0]
[1643557413018,105.15,95.268,95.211,6.0]
[1643557413818,105.15,95.268,95.202,0.2]
[1643557414021,15.757,95.26,95.202,0.45]
[1643557414218,104.9,95.259,95.202,0.45]
[1643557414419,105.15,95.259,95.202,0.45]
[1643557414619,104.9,95.259,95.202,0.45]
[1643557414820,0.25,95.258,95.202,0.45]
[1643557415019,0.25,95.258,95.187,24.91186121]
[1643557415020,15.76,95.25,95.188,0.45]
[1643557415218,44.10329705,95.248,95.188,0.45]
[1643557415418,44.10329705,95.248,95.187,0.25]
[1643557415620,0.25,95.247,95.192,6.0]
[1643557415820,105.15,95.247,95.193,0.25]
[1643557416019,105.15,95.247,95.193,6.0]
[1643557416220,15.762,95.24,95.193,0.2]
[1643557416419,15.762,95.24,95.179,1.43736121]
[1643557416623,0.25,95.239,95.177,0.2]
[1643557417220,15.764,95.23,95.177,0.2]
[1643557417421,44.98702712,95.229,95.177,0.45]
[1643557417621,44.98702712,95.229,95.178,1.43736121]
[1643557417820,44.98702712,95.229,95.179,0.25]
[1643557418422,15.764,95.22,95.179,0.25]
[1643557418922,0.25,95.219,95.179,0.25]
[1643557419528,38.79862707,95.209,95.177,0.25]
[1643557419721,0.25,95.219,95.177,0.25]
[1643557419921,0.25,95.229,95.182,1.43736121]
[1643557420122,0.25,95.229,95.18,1.43736121]
[1643557420323,0.25,95.238,95.181,0.25]
[1643557420523,15.763,95.23,95.19,6.0]
[1643557420724,39.44380304,95.229,95.19,6.0]
[1643557420923,39.69380304,95.229,95.19,6.0]
[1643557421125,39.69380304,95.229,95.181,0.25]
[1643557421527,39.69380304,95.229,95.178,0.25]
[1643557422225,0.25,95.229,95.18,15.761]
[1643557422427,0.25,95.229,95.181,6.45]
[1643557423227,40.39179632,95.229,95.181,0.2]
[1643557423627,40.39179632,95.229,95.172,1.63736121]
[1643557423827,40.39179632,95.229,95.173,1.43736121]
[1643557424028,40.39179632,95.229,95.174,1.43736121]
[1643557424430,67.674,95.27,95.18,15.762]
[1643557424632,1.45962049,95.286,95.19,6.0]
[1643557424633,15.14,95.28,95.19,6.0]
[1643557424932,15.14,95.29,95.193,1.43736121]
[1643557425134,38.2046,95.3,95.203,6.0]
[1643557425331,45.60196242,95.299,95.204,23.2684]
[1643557425532,45.60196242,95.299,95.205,0.2]
[1643557426132,39.03178248,95.269,95.205,0.2]
[1643557426332,0.25,95.268,95.205,0.2]
[1643557426934,39.03178248,95.269,95.205,0.2]
[1643557427135,39.03178248,95.269,95.214,6.0]
[1643557427335,15.757,95.26,95.215,0.25]
[1643557427735,15.757,95.26,95.211,0.2]
[1643557427934,15.757,95.26,95.215,0.25]
[1643557428135,15.757,95.26,95.205,0.2]
[1643557428336,0.25,95.259,95.205,0.2]
[1643557429738,0.25,95.259,95.205,0.45]
[1643557430139,0.25,95.259,95.21,15.757]
[1643557430437,0.25,95.267,95.211,0.2]
[1643557430638,0.25,95.267,95.205,0.45]
[1643557430840,0.25,95.268,95.205,0.45]
[1643557431441,15.757,95.26,95.205,0.45]
[1643557431941,0.25,95.259,95.205,0.45]
[1643557432540,0.25,95.259,95.214,6.0]
[1643557432943,0.25,95.259,95.215,0.25]
[1643557433143,104.9,95.268,95.215,0.25]
[1643557433144,0.25,95.267,95.215,0.25]
[1643557433947,15.757,95.26,95.215,0.25]
[1643557434345,0.25,95.259,95.215,0.25]
[1643557435748,0.25,95.259,95.214,6.0]
[1643557437265,0.25,95.259,95.215,0.25]
[1643557437464,0.25,95.259,95.214,6.0]
[1643557438865,0.25,95.259,95.215,0.25]
[1643557439067,104.9,95.268,95.22,6.0]
[1643557439266,104.9,95.268,95.221,0.25]
[1643557440569,104.9,95.268,95.215,0.25]
[1643557440868,15.756,95.27,95.215,0.25]
[1643557441071,40.30231016,95.269,95.215,24.4471]
[1643557441271,40.55231016,95.269,95.216,0.2]
[1643557441469,15.758,95.26,95.216,0.2]
[1643557441869,0.25,95.259,95.216,0.2]
[1643557450983,34.76599869,95.249,95.216,0.2]
[1643557451184,34.76599869,95.249,95.196,1.43736121]
[1643557451385,34.76599869,95.249,95.183,24.067]
[1643557451386,0.25,95.248,95.184,0.2]
[1643557452388,15.763,95.24,95.184,0.2]
[1643557452585,104.9,95.239,95.184,0.2]
[1643557452785,129.4845,95.239,95.172,0.25]
[1643557452986,129.4845,95.239,95.17,1.43736121]
[1643557453183,138.2745,95.239,95.17,1.43736121]
[1643557453383,138.2745,95.239,95.148,3.44481559]
[1643557453384,138.2745,95.239,95.167,1.43736121]
[1643557453584,138.2745,95.239,95.166,1.43736121]
[1643557453984,138.2745,95.239,95.167,1.43736121]
[1643557454182,15.766,95.22,95.167,1.43736121]
[1643557454384,38.27482854,95.219,95.168,0.25]
[1643557454585,38.27482854,95.219,95.162,1.63736121]
[1643557454784,38.27482854,95.219,95.163,0.25]
[1643557455587,15.764,95.21,95.163,0.25]
[1643557455793,0.25,95.209,95.162,0.45]
[1643557457090,0.25,95.209,95.17,15.763]
[1643557457289,52.541,95.25,95.171,6.45]
[1643557457492,52.541,95.25,95.171,6.25]
[1643557457790,0.25,95.238,95.171,6.25]
[1643557457992,0.25,95.238,95.175,6.0]
[1643557458191,45.89385318,95.238,95.181,6.0]
[1643557458391,15.761,95.23,95.182,0.25]
[1643557458791,0.25,95.229,95.181,0.2]
[1643557459392,0.25,95.229,95.181,0.45]
[1643557460195,0.25,95.229,95.19,6.0]
[1643557460397,0.25,95.229,95.181,0.45]
[1643557460798,15.762,95.22,95.181,0.2]
[1643557460999,41.91233218,95.219,95.177,0.45]
[1643557461200,42.16233218,95.219,95.177,0.45]
[1643557462005,0.25,95.219,95.177,0.45]
[1643557462920,0.25,95.219,95.18,15.761]
[1643557463121,0.25,95.219,95.181,0.2]
[1643557463321,0.25,95.219,95.181,0.45]
[1643557463724,46.03759197,95.22,95.181,0.45]
[1643557464420,15.761,95.23,95.181,0.45]
[1643557464822,0.25,95.229,95.181,0.45]
[1643557465028,0.25,95.229,95.181,0.2]
[1643557465422,0.25,95.229,95.181,0.45]
[1643557465623,15.761,95.23,95.181,0.45]
[1643557465823,0.25,95.229,95.181,0.45]
[1643557469928,0.25,95.229,95.181,0.2]
[1643557470132,15.762,95.22,95.181,0.2]
[1643557470328,0.25,95.219,95.177,0.45]
[1643557471131,0.25,95.219,95.177,2.69450018]
[1643557471331,0.25,95.219,95.177,0.45]
[1643557471533,0.25,95.219,95.177,0.2]
[1643557471931,0.25,95.219,95.177,0.45]
[1643557473533,15.764,95.21,95.177,0.2]
[1643557473934,0.25,95.209,95.177,0.2]
[1643557474134,0.25,95.209,95.177,0.45]
[1643557474937,15.764,95.21,95.177,0.45]
[1643557475338,48.60254611,95.21,95.177,0.2]
[1643557475734,48.60254611,95.21,95.174,6.0]
[1643557476439,48.60254611,95.21,95.17,6.0]
[1643557477038,48.60254611,95.21,95.174,6.0]
[1643557478439,48.60254611,95.21,95.17,6.0]
[1643557478638,0.25,95.209,95.17,6.0]
[1643557478840,0.25,95.209,95.171,0.25]
[1643557479638,104.9,95.237,95.171,0.25]
[1643557479839,104.9,95.237,95.176,6.0]
[1643557480138,104.9,95.237,95.171,22.972]
[1643557480139,104.9,95.237,95.181,6.0]
[1643557480349,104.9,95.237,95.182,0.25]
[1643557480639,104.9,95.237,95.188,6.0]
[1643557480940,1.45962049,95.264,95.19,15.76]
[1643557481240,16.0724,95.365,95.205,1.43736121]
[1643557481241,1.45962049,95.301,95.205,1.43736121]
[1643557481441,1.45962049,95.307,95.211,1.43736121]
[1643557481640,1.45962049,95.307,95.206,23.7866]
[1643557481641,26.01332049,95.309,95.221,6.0]
[1643557481841,41.39165209,95.306,95.222,46.0319]
[1643557482039,15.751,95.3,95.232,6.0]
[1643557482440,15.751,95.3,95.233,0.25]
[1643557483242,0.25,95.299,95.233,0.25]
[1643557484142,0.25,95.299,95.24,15.752]
[1643557484341,0.25,95.299,95.241,0.45]
[1643557484542,0.25,95.299,95.25,6.0]
[1643557484747,41.39165209,95.306,95.25,6.0]
[1643557485044,41.39165209,95.306,95.251,0.25]
[1643557485243,41.39165209,95.306,95.251,0.45]
[1643557485448,41.39165209,95.306,95.26,6.0]
[1643557485845,15.751,95.3,95.261,0.25]
[1643557486247,0.25,95.299,95.241,0.2]
[1643557486449,0.25,95.299,95.241,0.25]
[1643557487249,0.25,95.299,95.241,0.45]
[1643557488479,0.25,95.299,95.233,0.25]
[1643557488672,0.25,95.305,95.233,0.25]
[1643557489676,15.751,95.3,95.233,0.25]
[1643557489876,0.25,95.299,95.233,0.25]
[1643557490078,0.25,95.299,95.24,6.0]
[1643557490880,147.01697107,95.289,95.241,0.25]
[1643557491080,147.01697107,95.289,95.232,6.0]
[1643557491081,0.25,95.288,95.232,6.0]
[1643557491280,0.25,95.288,95.233,0.25]
[1643557492479,0.25,95.288,95.24,6.0]
[1643557492880,0.25,95.288,95.241,0.25]
[1643557493881,0.25,95.288,95.233,0.25]
[1643557494086,0.25,95.288,95.24,15.752]
[1643557494283,0.25,95.288,95.241,0.2]
[1643557494685,0.25,95.288,95.233,0.25]
[1643557495687,0.25,95.288,95.24,6.0]
[1643557495888,42.11697107,95.289,95.24,6.0]
[1643557496186,42.11697107,95.289,95.241,0.25]
[1643557496789,15.754,95.28,95.241,0.25]
[1643557497289,0.25,95.279,95.241,0.25]
[1643557499188,0.25,95.279,95.24,6.0]
[1643557499390,34.19604364,95.269,95.231,0.2]
[1643557499592,34.19604364,95.269,95.223,0.2]
[1643557499789,0.25,95.268,95.223,0.45]
[1643557500389,15.757,95.26,95.223,0.2]
[1643557500791,0.25,95.259,95.223,0.2]
[1643557501098,34.19604364,95.269,95.223,0.2]
[1643557501292,0.25,95.268,95.223,0.2]
[1643557501790,0.25,95.268,95.223,0.45]
[1643557502391,40.55654469,95.269,95.223,0.45]
[1643557503795,15.754,95.28,95.223,0.45]
[1643557503994,104.9,95.286,95.232,6.0]
[1643557504195,0.25,95.279,95.232,6.0]
[1643557504394,0.25,95.279,95.233,0.25]
[1643557505399,0.25,95.283,95.231,0.45]
[1643557506303,15.754,95.28,95.231,0.45]
[1643557506500,15.754,95.28,95.223,0.45]
[1643557506705,0.25,95.279,95.223,0.45]
[1643557506904,105.15,95.279,95.223,0.45]
[1643557507328,45.94327956,95.269,95.223,0.45]
[1643557507728,0.25,95.268,95.223,0.45]
[1643557508931,0.25,95.268,95.223,0.2]
[1643557509128,0.25,95.268,95.211,0.2]
[1643557509330,0.25,95.268,95.194,1.43736121]
[1643557509530,0.25,95.268,95.19,52.518]
[1643557509531,0.25,95.268,95.204,6.0]
[1643557509730,0.25,95.268,95.205,22.8237]
[1643557509932,0.25,95.268,95.206,0.2]
[1643557510132,0.25,95.268,95.215,6.0]
[1643557510331,0.25,95.268,95.216,23.0737]
[1643557510533,0.25,95.268,95.217,0.2]
[1643557512032,15.758,95.26,95.217,0.2]
[1643557512432,0.25,95.259,95.216,0.25]
[1643557512632,0.25,95.259,95.201,0.25]
[1643557512832,0.25,95.259,95.195,0.25]
[1643557513234,0.25,95.259,95.189,0.2]
[1643557513235,46.7218885,95.249,95.198,6.0]
[1643557513432,46.7218885,95.249,95.202,6.0]
[1643557513633,46.7218885,95.249,95.203,0.25]
[1643557514037,0.25,95.248,95.201,6.0]
[1643557514435,46.7218885,95.249,95.202,0.25]
[1643557514636,0.25,95.248,95.201,0.2]
[1643557516039,0.25,95.248,95.201,0.45]
[1643557516644,0.25,95.248,95.2,6.0]
[1643557516839,0.25,95.248,95.201,0.25]
[1643557517844,0.25,95.248,95.198,6.0]
[1643557518443,105.15,95.248,95.198,6.0]
[1643557519044,15.761,95.24,95.197,6.0]
[1643557519246,15.761,95.24,95.19,6.0]
[1643557519444,15.761,95.24,95.182,0.2]
[1643557519445,0.25,95.239,95.182,0.2]
[1643557519644,0.25,95.239,95.162,0.2]
[1643557519645,26.23499142,95.239,95.162,0.2]
[1643557519848,26.23499142,95.239,95.16,1.43736121]
[1643557520045,26.23499142,95.239,95.152,1.43736121]
[1643557520046,15.764,95.23,95.152,1.43736121]
[1643557520245,32.82625255,95.229,95.145,1.43736121]
[1643557520547,52.564,95.22,95.143,1.43736121]
[1643557520946,0.25,95.219,95.144,1.43736121]
[1643557521146,15.769,95.21,95.145,1.43736121]
[1643557521346,45.1887991,95.209,95.146,0.25]
[1643557521947,54.2687991,95.209,95.146,0.25]
[1643557522548,77.3902991,95.209,95.139,0.25]
[1643557522947,77.3902991,95.209,95.132,0.2]
[1643557522948,77.3902991,95.209,95.138,0.25]
[1643557523148,15.769,95.2,95.138,0.25]
[1643557523349,0.25,95.199,95.146,6.0]
[1643557523552,0.25,95.199,95.141,6.0]
[1643557523948,0.25,95.199,95.142,6.25]
[1643557524150,15.769,95.19,95.143,23.8384]
[1643557524351,37.62042112,95.189,95.144,0.45]
[1643557524550,104.9,95.188,95.144,0.2]
[1643557524751,104.9,95.188,95.131,1.63736121]
[1643557525052,0.25,95.187,95.121,24.0384]
[1643557525249,0.25,95.187,95.122,0.2]
[1643557525651,15.769,95.18,95.122,0.2]
[1643557525851,15.769,95.18,95.131,6.0]
[1643557526350,15.769,95.18,95.132,0.25]
[1643557527151,0.25,95.179,95.132,0.25]
[1643557527351,15.772,95.17,95.132,0.25]
[1643557527553,38.32472326,95.169,95.122,0.45]
[1643557527752,38.57472326,95.169,95.122,0.25]
[1643557527953,38.57472326,95.169,95.116,0.45]
[1643557528153,38.57472326,95.169,95.116,22.9746]
[1643557528354,104.9,95.168,95.117,0.2]
[1643557528554,15.773,95.16,95.117,0.2]
[1643557528954,0.25,95.159,95.117,0.2]
[1643557529855,15.773,95.16,95.117,0.2]
[1643557530257,15.773,95.16,95.117,0.45]
[1643557532156,15.773,95.16,95.116,0.25]
[1643557532357,15.773,95.16,95.101,0.2]
[1643557532358,15.773,95.16,95.11,6.0]
[1643557532557,0.25,95.159,95.11,6.0]
[1643557532757,0.25,95.159,95.111,0.25]
[1643557534763,0.25,95.159,95.111,0.45]
[1643557536762,0.25,95.159,95.106,24.5621]
[1643557536964,138.57187886,95.149,95.11,6.0]
[1643557537168,138.57187886,95.149,95.107,0.2]
[1643557537365,0.25,95.148,95.107,0.2]
[1643557537566,3.20669142,95.148,95.073,0.4]
[1643557537765,0.25,95.148,95.073,0.4]
[1643557537966,0.25,95.148,95.082,6.0]
[1643557538168,104.9,95.139,95.082,6.0]
[1643557538367,0.25,95.138,95.082,6.0]
[1643557538769,0.25,95.138,95.083,0.25]
[1643557539570,0.25,95.138,95.073,0.4]
[1643557539773,15.779,95.13,95.073,0.65]
[1643557539972,15.779,95.13,95.082,6.0]
[1643557540272,46.07426306,95.129,95.083,0.25]
[1643557540772,15.779,95.13,95.083,0.25]
[1643557541386,24.6355,95.148,95.083,0.25]
[1643557541686,0.1,95.599,95.083,0.25]
[1643557541687,15.14,95.18,95.084,2.28705857]
[1643557541886,15.14,95.18,95.085,0.25]
[1643557542087,15.14,95.18,95.094,6.0]
[1643557542294,15.775,95.15,95.095,23.0659]
[1643557542488,15.775,95.15,95.096,0.2]
[1643557542686,15.775,95.15,95.105,6.0]
[1643557542887,15.775,95.15,95.106,0.25]
[1643557543087,40.32160108,95.155,95.106,0.25]
[1643557543788,40.32160108,95.155,95.096,0.2]
[1643557544189,105.15,95.154,95.096,0.2]
[1643557544793,15.776,95.15,95.096,0.2]
[1643557544990,15.776,95.15,95.096,0.45]
[1643557545195,0.25,95.149,95.096,0.45]
[1643557545993,15.777,95.14,95.096,0.45]
[1643557546394,0.25,95.139,95.096,0.45]
[1643557547795,105.15,95.152,95.096,0.45]
[1643557548195,15.779,95.13,95.096,0.45]
[1643557548995,105.15,95.152,95.096,0.45]
[1643557549198,15.777,95.14,95.096,0.45]
[1643557549397,15.777,95.14,95.105,6.0]
[1643557549596,0.25,95.152,95.105,6.0]
[1643557549796,0.25,95.152,95.106,0.25]
[1643557549999,0.25,95.152,95.106,6.25]
[1643557550397,15.776,95.15,95.106,6.25]
[1643557550698,15.776,95.15,95.106,0.25]
[1643557550998,15.14,95.18,95.105,6.0]
[1643557551197,24.4967,95.184,95.106,24.4304]
[1643557551399,24.4967,95.184,95.107,0.35]
[1643557551599,24.4967,95.184,95.107,0.45]
[1643557552001,15.772,95.17,95.11,15.772]
[1643557552202,15.772,95.17,95.111,0.2]
[1643557552403,0.25,95.169,95.111,0.45]
[1643557553206,15.774,95.16,95.111,0.45]
[1643557553503,0.25,95.159,95.107,0.45]
[1643557553903,0.25,95.159,95.104,1.43736121]
[1643557553904,0.25,95.159,95.105,0.25]
[1643557554302,15.775,95.15,95.098,0.25]
[1643557554503,33.97964996,95.149,95.098,0.25]
[1643557554703,34.22964996,95.149,95.098,0.25]
[1643557555304,15.779,95.14,95.098,0.25]
[1643557555507,15.779,95.14,95.094,0.25]
[1643557555706,0.25,95.139,95.094,0.25]
[1643557555905,0.25,95.139,95.093,0.25]
[1643557556911,0.25,95.139,95.092,0.25]
[1643557557112,0.25,95.139,95.092,1.68736121]
[1643557557410,0.25,95.139,95.093,0.25]
[1643557558311,0.25,95.139,95.093,1.68736121]
[1643557558511,0.25,95.139,95.094,1.43736121]
[1643557558711,0.25,95.139,95.094,1.68736121]
[1643557559111,15.775,95.15,95.094,1.68736121]
[1643557559313,0.25,95.149,95.098,1.43736121]
[1643557559512,0.25,95.149,95.101,1.43736121]
[1643557559736,0.25,95.149,95.105,6.0]
[1643557559911,23.2125,95.179,95.102,1.68736121]
[1643557560116,36.09419013,95.178,95.102,1.68736121]
[1643557560313,15.773,95.17,95.104,1.43736121]
[1643557560512,15.773,95.17,95.1,1.43736121]
[1643557560712,107.85669142,95.169,95.099,1.43736121]
[1643557560912,107.85669142,95.169,95.098,1.43736121]
[1643557561112,2.93378816,95.168,95.098,1.43736121]
[1643557561312,2.93378816,95.168,95.096,0.2]
[1643557561313,24.8583,95.167,95.096,0.2]
[1643557561515,104.9,95.166,95.096,0.2]
[1643557561713,105.15,95.166,95.096,0.45]
[1643557562114,15.775,95.16,95.096,0.45]
[1643557562314,1.45962049,95.197,95.098,1.43736121]
[1643557562515,1.45962049,95.209,95.11,1.43736121]
[1643557562720,15.14,95.21,95.121,1.43736121]
[1643557562915,15.14,95.21,95.122,1.43736121]
[1643557563117,38.39704007,95.189,95.132,6.0]
[1643557563316,38.39704007,95.189,95.133,0.25]
[1643557563916,24.6161,95.188,95.133,0.25]
[1643557564519,15.771,95.17,95.12,0.45]
[1643557564717,15.771,95.17,95.12,1.88736121]
[1643557564919,15.771,95.17,95.12,0.45]
[1643557565517,15.771,95.17,95.129,6.0]
[1643557565917,15.769,95.18,95.13,0.25]
[1643557566119,0.25,95.179,95.129,6.0]
[1643557566317,0.25,95.179,95.126,6.0]
[1643557566519,0.25,95.179,95.123,6.0]
[1643557566917,15.77,95.17,95.124,6.0]
[1643557567122,15.77,95.17,95.124,6.2]
[1643557567344,0.25,95.169,95.125,0.25]
[1643557567548,0.25,95.169,95.115,0.25]
[1643557567750,0.25,95.169,95.11,16.022]
[1643557567947,0.25,95.169,95.119,6.0]
[1643557568148,24.3661,95.188,95.12,6.25]
[1643557568346,38.39704007,95.189,95.121,0.25]
[1643557568545,38.39704007,95.189,95.127,6.0]
[1643557568745,38.39704007,95.189,95.122,1.43736121]
[1643557568946,38.39704007,95.189,95.132,6.0]
[1643557569148,38.39704007,95.189,95.133,6.0]
[1643557569346,38.39704007,95.189,95.134,0.25]
[1643557569746,38.39704007,95.189,95.134,24.6624]
[1643557569948,38.39704007,95.189,95.135,0.2]
[1643557570148,15.769,95.18,95.135,0.2]
[1643557570751,23.2348,95.209,95.135,0.2]
[1643557570948,23.2348,95.209,95.135,13.82]
[1643557571148,23.2348,95.209,95.136,0.2]
[1643557571347,23.2348,95.209,95.136,0.45]
[1643557571747,37.49258927,95.208,95.136,0.45]